{"text_format":"1","workbook":"xlsx","n_sheets":6,"sheets":["MATRIZ DE INDICADORES","MAR-5","INS-7","MAR-9","ACTUALIZACIONES","ITEM"],"not_rendered":{"charts":3,"images":3,"macros":0,"external_links":1,"defined_names":12,"comments":0,"pivot_tables":0},"unopened":[],"bounds":{"document_bytes":16777216,"sheet_cells":100000,"rows_first":2000,"rows_last":500,"rows_between":2000,"halvings":0,"cell_chars":16384,"cell_head_chars":4096},"cells_cut":0,"cells_raw":0,"read":"whole","date_system":"1900"}

{"sheet":"MATRIZ DE INDICADORES","index":0,"n_rows":42,"n_cols":21,"rows_kept":42,"cut":false,"hidden":false,"merged":[[1,18,1,20],[1,1,4,2],[1,3,1,17],[2,3,2,17],[3,3,4,17],[40,1,40,20],[41,1,41,20],[2,18,2,20],[3,18,3,20],[4,18,4,20],[9,1,10,20],[6,16,7,17],[12,1,16,1],[12,2,16,2],[12,3,16,3],[12,4,16,4],[12,5,16,5],[12,6,16,6],[12,7,16,7],[12,8,16,8],[12,9,16,9],[12,10,16,10],[12,11,16,11],[12,18,16,18],[12,19,16,19],[12,20,16,20],[17,1,21,1],[17,2,21,2],[17,3,21,3],[17,4,21,4],[17,5,21,5],[17,6,21,6],[17,7,21,7],[17,8,21,8],[17,9,21,9],[17,10,21,10],[22,6,26,6],[22,7,26,7],[22,8,26,8],[22,9,26,9],[22,10,26,10],[22,1,26,1],[22,2,26,2],[22,3,26,3],[22,4,26,4],[22,5,26,5],[22,19,26,19],[22,20,26,20],[17,11,21,11],[17,18,21,18],[17,19,21,19],[17,20,21,20],[22,11,26,11],[22,18,26,18]]}
[]
[null,null,null,"MACROPROCESO ESTRATÉGICO",null,null,null,null,null,null,null,null,null,null,null,null,null,null,"CÓDIGO: ESGr027"]
[null,null,null,"PROCESO GESTIÓN SISTEMAS INTEGRADOS - CALIDAD",null,null,null,null,null,null,null,null,null,null,null,null,null,null,"VERSIÓN: 8"]
[null,null,null,"MATRIZ DE MEDICIÓN Y SEGUIMIENTO A LOS PROCESOS DE GESTIÓN",null,null,null,null,null,null,null,null,null,null,null,null,null,null,"VIGENCIA: 2023-07-28"]
[null,null,null,null,null,null,null,null,null,null,null,null,null,null,null,null,null,null,"PÁGINA: 1 de 6"]
[]
[null,null,null,null,null,null,null,null,null,null,null,null,null,null,null,null,"FECHA DE ACTUALIZACIÓN:",null,"AÑO","MES","DÍA"]
[null,null,null,null,null,null,null,null,null,null,null,null,null,null,null,null,null,null,2024,4,22]
[]
[null,"ALINEACIÓN DE LOS INDICADORES CON LOS DOCUMENTOS ESTRATÉGICOS Y LOS OBJETIVOS DE CALIDAD"]
[]
[null,"PROCESO GESTIÓN","FRENTES DEL PLAN ESTRATÉGICO","LINEAMIENTOS DE LA POLÍTICA DE CALIDAD","OBJETIVOS DE CALIDAD","OBJETIVO GENERAL DEL PROCESO","OBJETIVOS ESPECÍFICOS","NOMBRE INDICADOR","FÓRMULA","TIPO DE INDICADOR","SEGUIMIENTO MEDICIÓN","META","ACTIVIDAD","RESPONSABLE DE LA ACTIVIDAD","¿QUÉ RECURSOS SE REQUIEREN?","FECHA EJECUCIÓN DE ACTIVIDADES","EVIDENCIA","¿CUÁNDO FINALIZARÁ?","RESULTADO ","NIVEL OBTENIDO","ACCESO"]
[null,"Admisiones y Registro ","Frente Estratégico VI: Organización Universitaria Digital.","Se legitima como una organización social del conocimiento y el aprendizaje que se compromete con el pensamiento basado en riesgos y el mejoramiento continuo mediante buenas prácticas administrativas y académicas en búsqueda de la acreditación de programas y la acreditación institucional","Lograr la acreditación de programas y la acreditación institucional de acuerdo a la planificación de las metas  institucionales resultantes de los ejercicios de autoevaluación y acreditación","Administrar y controlar las actividades de Admisiones y Registro, para garantizar el cumplimiento de los requisitos y normas vigentes sobre la selección, admisión, permanencia, promoción y graduación de los estudiantes de la Universidad de Cundinamarca.","Asegurar la matrícula académica del 98% de los admitidos, conforme a los cupos disponibles por periodo en la vigencia 2024.\n\n","Matriculados Efectivos ","Número de matriculados efectivos * 100 /  total Número de estudiantes a admitir","Acreditación","SEMESTRAL",0.98,"Solicitar la publicación del listado de admitidos a la Oficina Asesora de Comunicaciones.","Funcionario Oficina\nde la Admisiones y\nRegistro.","Recurso tecnológico. ","SEMESTRAL (IPA   Y IIPA 2024)","lista de admitidos publicados en la pagina wen institucional  .","VIGENCIA 2024",0.94,"Bueno","MAR-5"]
[null,null,null,null,null,null,null,null,null,null,null,null,"Parametrizar el sistema, (aplicativo\nAcademusoft) para el registro de la matrícula académica de los programas de pregrado","Jefe de Oficina de Admisiones y Registro","Recurso tecnológico. ","SEMESTRAL (IPA   Y IIPA 2024)","Aplicativo academusoft parametrizado","VIGENCIA 2024"]
[null,null,null,null,null,null,null,null,null,null,null,null,"Generar liquidación a estudiantes antiguos y nuevos regulares","Tesorería ","Recurso tecnológico. ","SEMESTRAL (IPA   Y IIPA 2024)","Recibo de liquidación ","VIGENCIA 2024"]
[null,null,null,null,null,null,null,null,null,null,null,null,"Solicitar a la oficina de Desarrollo  Académico los horarios base de todos los programas de pregrado de los estudiantes nuevos regulares.\n","Jefe y funcionario\noficina de\nAdmisiones y\nRegistro\nOficina de Apoyo\nAcadémico","Recurso Humano","SEMESTRAL (IPA   Y IIPA 2024)","Correo electrónico de solicitud a Desarrollo Académico.","VIGENCIA 2024"]
[null,null,null,null,null,null,null,null,null,null,null,null,"Realizar el registro académico de los núcleos temáticos o campos de\naprendizaje de estudiantes nuevos\nregulares.","Jefe y funcionario oficina de Admisiones y Registro.","Recurso tecnológico. ","SEMESTRAL (IPA   Y IIPA 2024)","Horario del estudiante","VIGENCIA 2024"]
[null,"Admisiones y Registro \n\nFormación y Aprendizaje","Frente Estratégico VI: Organización Universitaria Digital.","Se legitima como una organización social del conocimiento y el aprendizaje que se compromete con el pensamiento basado en riesgos y el mejoramiento continuo mediante buenas prácticas administrativas y académicas en búsqueda de la acreditación de programas y la acreditación institucional","Lograr la acreditación de programas y la acreditación institucional de acuerdo a la planificación de las metas  institucionales resultantes de los ejercicios de autoevaluación y acreditación","Administrar y controlar las actividades de Admisiones y Registro, para garantizar el cumplimiento de los requisitos y normas vigentes sobre la selección, admisión, permanencia, promoción y graduación de los estudiantes de la Universidad de Cundinamarca.","Asegurar la actualización de información para el seguimiento a estudiantes con posible pérdida de condición de estudiante según normatividad vigente para la vigencia 2024.\n\n","Tasa de perdida de condición de estudiante ","Número de estudiantes que pierden condición de estudiante acorde con el reglamento estudiantil * 100 / total de estudiantes ","Acreditación","SEMESTRAL",0.02,"Descargar reporte de  los estudiantes con perdida de calidad de estudiante. ","Dirección de Sistemas y Tecnología","Recurso tecnológico. ","SEMESTRAL (IPA   Y IIPA 2024)","Reporte de Estudiantes","VIGENCIA 2024",2.8000000000000001E-2,"Bueno","INS-7"]
[null,null,null,null,null,null,null,null,null,null,null,null,"Aplicar perdida de Calidad conforme a los acuerdos 010 y 027 (Reglamentos estudiantiles).","Dirección de Sistemas y Tecnología","Recurso tecnológico. ","SEMESTRAL (IPA   Y IIPA 2024)","Reporte de Estudiantes con Perdida de Calidad de Estudiante","VIGENCIA 2024"]
[null,null,null,null,null,null,null,null,null,null,null,null,"Cambiar situación académica del estudiante a \"Perdida de Calidad de estudiante\" en el aplicativo Ademosuf ","Dirección de Sistemas y Tecnología","Recurso tecnológico. ","SEMESTRAL (IPA   Y IIPA 2024)","Cambio de situación académica Aplicativo Academosuft","VIGENCIA 2024"]
[null,null,null,null,null,null,null,null,null,null,null,null,"Reportar estudiantes con perdida a Vice rectoría Académica. ","Jefe y funcionario oficina de Admisiones y Registro.","Recurso Humano","SEMESTRAL (IPA   Y IIPA 2024)","Correo electrónico del listado de los estudiantes ","VIGENCIA 2024"]
[null,null,null,null,null,null,null,null,null,null,null,null,"Notificar  a cada estudiante de la Perdida de Calidad de Estudiante. ","Jefe y funcionario oficina de Admisiones y Registro.","Recurso Humano","SEMESTRAL (IPA   Y IIPA 2024)","Correo electrónico de notificación por cada estudiante.","VIGENCIA 2024"]
[null,"Admisiones y Registro ","Frente Estratégico VI: Organización universitaria inteligente con alma y corazón","Se legitima como una organización social del conocimiento y el aprendizaje que se compromete con el pensamiento basado en riesgos y el mejoramiento continuo mediante buenas prácticas administrativas y académicas en búsqueda de la acreditación de programas y la acreditación institucional, enfocándose en el bienestar de la comunidad universitaria como factor constitutivo de la vida y la libertad y la consolidación de una organización universitaria inteligente con alma y corazón.","Mejorar continuamente el desempeño de los procesos a través de la implementación de buenas prácticas institucionales y de la aplicación de los mecanismos dispuestos por la universidad de Cundinamarca, para la constitución de  una organización universitaria inteligente con alma y corazón ","Administrar y controlar las actividades de Admisiones y Registro, para garantizar el cumplimiento de los requisitos y normas vigentes sobre la selección, admisión, permanencia, promoción y graduación de los estudiantes de la Universidad de Cundinamarca.","\nAnalizar el nivel de satisfacción de los estudiantes para describir factores/ acciones de mejora en la vigencia 2024.\n\n"," Satisfacción de los estudiantes frente a los servicios de la Oficina de Admisiones y Registro","(Total encuestas calificación mayor a 4) *100 / Total encuestas","Eficacia","SEMESTRAL",0.85,"Elaboración de Encuesta institucional ","Direccion de Planeación Institucional  ","Recurso tecnológico. ","SEMESTRAL (IPA   Y IIPA 2024)","Instrumento de encuesta","VIGENCIA 2024",0.83,"Bueno","MAR-9"]
[null,null,null,null,null,null,null,null,null,null,null,null,"Compartir encuesta institucional para su diligenciamiento. ","Direccion de Planeación Institucional - Oficina de Admisiones y Registro. ","Recurso Humano","SEMESTRAL (IPA   Y IIPA 2024)","Código QR /LINK Instrumento de encuesta","VIGENCIA 2024"]
[null,null,null,null,null,null,null,null,null,null,null,null,"Aplicar encuesta institucional a la comunidad Universitaria.","Comunidad  Universitaria ","Recurso Humano. Recurso tecnológico. ","SEMESTRAL (IPA   Y IIPA 2024)","Código QR /LINK Instrumento de encuesta diligenciado.","VIGENCIA 2024"]
[null,null,null,null,null,null,null,null,null,null,null,null,"Solicitar resultados de Encuesta de la Oficina de Admisiones y Registro.","Funcionario de la Oficina de Admisiones y Registro. ","Recurso tecnológico. ","SEMESTRAL (IPA   Y IIPA 2024)","Resultado de encuesta.","VIGENCIA 2024"]
[null,null,null,null,null,null,null,null,null,null,null,null,"Analizar resultados de la Encuesta institucional de la Ofician de Admisiones y Registro.","Jefe y funcionario oficina de Admisiones y Registro.","Recurso Humano","SEMESTRAL (IPA   Y IIPA 2024)","Análisis de Encuesta indicadores","VIGENCIA 2024"]
[]
[]
[]
[]
[]
[]
[]
[]
[]
[]
[]
[]
[]
[null,"Diagonal 18 No. 20-29 Fusagasugá – Cundinamarca\nTeléfono (601)  8281483 Línea Gratuita 018000180414\nwww.ucundinamarca.edu.co   E-mail:  info@ucundinamarca.edu.co\nNIT: 890.680.062-2                                                                             "]
[null,"Documento controlado por el Sistema de Gestión de la Calidad\nAsegúrese que corresponde a la última versión consultando el Portal Institucional"]

{"sheet":"MAR-5","index":1,"n_rows":98,"n_cols":15,"rows_kept":98,"cut":false,"hidden":false,"merged":[[1,1,3,2],[4,2,7,3],[4,4,4,11],[15,2,15,14],[8,2,8,14],[9,2,10,14],[11,2,11,3],[11,4,11,7],[11,8,11,9],[11,10,11,14],[12,2,12,3],[12,4,12,14],[13,2,13,3],[13,4,13,14],[4,12,4,14],[5,4,5,11],[5,12,5,14],[6,4,7,11],[6,12,6,14],[7,12,7,14],[16,15,17,15],[16,13,16,14],[17,13,18,14],[18,4,18,5],[16,2,16,3],[16,11,16,12],[17,11,18,12],[17,6,17,10],[18,6,18,10],[16,9,16,10],[16,7,16,8],[16,4,16,6],[22,7,23,8],[14,2,14,14],[22,4,22,6],[23,4,23,6],[19,2,21,3],[19,7,21,8],[19,11,19,14],[19,9,21,10],[19,4,21,6],[22,13,23,14],[22,2,22,3],[23,2,23,3],[22,9,23,10],[22,11,23,12],[17,2,18,3],[17,4,17,5],[44,2,44,14],[25,2,25,14],[26,2,42,8],[26,9,26,14],[42,9,42,14],[41,9,41,14],[26,15,27,15],[27,9,32,14],[33,9,33,14],[34,9,39,14],[40,9,40,14],[51,2,51,14],[52,2,52,5],[52,6,52,9],[52,10,52,14],[53,2,53,5],[53,6,53,9],[53,10,53,14],[54,2,54,5],[54,6,54,9],[54,10,54,14],[55,2,55,5],[55,6,55,9],[55,10,55,14],[56,2,56,5],[56,6,56,9],[56,10,56,14],[57,2,57,5],[57,6,57,9],[57,10,57,14],[61,2,61,14],[62,2,62,14],[58,2,58,5],[58,6,58,9],[58,10,58,14],[59,2,59,5],[59,6,59,9],[59,10,59,14]]}
[]
[null,"      REGRESAR"]
[]
[]
[null,null,null,null,"MACROPROCESO ESTRATÉGICO",null,null,null,null,null,null,null,"CÓDIGO: ESGr027"]
[null,null,null,null,"PROCESO GESTIÓN SISTEMAS INTEGRADOS - CALIDAD",null,null,null,null,null,null,null,"VERSIÓN: 8"]
[null,null,null,null,"MATRIZ DE MEDICIÓN Y SEGUIMIENTO A LOS PROCESOS DE GESTIÓN",null,null,null,null,null,null,null,"VIGENCIA: 2023-07-28"]
[null,null,null,null,null,null,null,null,null,null,null,null,"PÁGINA: 3 de 6"]
[]
[null,null,"FICHA DE INDICADOR"]
[]
[null,null,"MACROPROCESO",null,"Misional",null,null,null,"NOMBRE DEL INDICADOR",null,"Matriculados Efectivos "]
[null,null,"PROCESO GESTIÓN",null,"Admisiones y Registro"]
[null,null,"RESPONSABLE DE MEDICIÓN",null,"Jefe de Oficina Admisiones y Registro"]
[]
[null,null,"1. COMPORTAMIENTO DE INDICADOR"]
[null,null,"CLASIFICACIÓN DE LA MEDICIÓN",null,4,null,null,"TIPO DE INDICADOR",null,"Acreditación",null,"META",null,0.98]
[null,null,"FORMULA",null,"NUMERADOR",null,"Número de matriculados efectivos * 100",null,null,null,null,"UNIDAD DE MEDIDA",null,"Porcentaje"]
[null,null,null,null,"DENOMINADOR",null,"Total  Número de estudiantes a admitir"]
[null,null,"TENDENCIA",null,"Positiva",null,null,"NIVEL DE SEGREGACIÓN *",null,"Por Programa Académico",null,"ESCALA"]
[null,null,null,null,null,null,null,null,null,null,null,"Deficiente","Aceptable","Bueno","Excelente"]
[null,null,null,null,null,null,null,null,null,null,null,"0% - 69.9%","70% - 82,9%","83% - 97,9%",">98%"]
[null,null,"ORIGEN DE DATOS NUMERADOR",null,"Listado en Excel de inscritos y admitidos",null,null,"FRECUENCIA DE LA MEDICIÓN",null,"SEMESTRAL",null,"FRECUENCIA DE RESULTADO",null,"SEMESTRAL"]
[null,null,"ORIGEN DE DATOS DENOMINADOR",null,"Listado en Excel de inscritos y admitidos"]
[]
[null,null,"RESULTADOS"]
[null,null,null,null,null,null,null,null,null,"ANÁLISIS DE DATOS"]
[null,null,null,null,null,null,null,null,null,"El proceso de Inscripción, Selección y Admisión correspondiente al primer periodo académico de 2024 para la Sede, Seccionales y Extensiones; Inicia con la parametrización del aplicativo según la oferta académica enviada por la Vicerrectoría Académica y de acuerdo con los cupos asignados por programa para cada vigencia, teniendo en cuenta los Registros Calificados emitidos por el Ministerio de Educación Nacional, la ampliación de cupos 2024-I en el marco del Plan Integral de Cobertura en el programa del MEN “Universidad en tu Territorio”, adicionalmente se tiene en cuenta la disminución de cupos definidos por la Alta Dirección acorde a la disminución de inscritos en programas académicos de la Facultad de Ciencias Económicas, administrativas y contables según fechas establecidas en el Calendario Académico vigencia 2024. Teniendo en cuenta lo anterior, se evidencia en los datos segregados en algunas unidades regionales donde no se cumplió con el total de cupos ofertados, adicionalmente se presentaron casos de aspirantes admitidos que no cumplieron con lo establecido en el Acuerdo 001 de 2007, ya que la CARACTERIZACIÓN INSTITUCIONAL es insumo para acceder a la Política de Gratuidad bajo el Decreto 1667 de 2021, requisito para la emisión del recibo de pago y finalizar la matricula con éxito. Con respecto de los cupos disponibles, estos pueden verse sujetos a cambios, aprobados previamente por el Consejo Académico de acuerdo con el número de inscritos para cada periodo académico. Se deberá tener en cuenta que, en la medición del primer semestre, se toma como base el número de admitidos efectivos (que pagan su matrícula financiera) sobre el total de cupos finales que son aprobados. La disminución del porcentaje para la medición en primer semestre, pude verse afectada por diferentes factores exógenos (externos) a la institución como son: admitidos que se presentan a otras instituciones, por tal motivo no cancelan su matrícula, desisten del cupo, admitidos que se presentan a más de un programa, admitidos que no cumplen con las condiciones de gratuidad en la matrícula y deben cancelar la totalidad de la misma y por ende desisten; así las cosas, aunque se realiza la admisión efectiva, la totalidad de los admitidos no cancelan su matrícula financiera. "]
[]
[]
[]
[]
[]
[null,null,null,null,null,null,null,null,null,"ACCIÓN FORMULADA"]
[null,null,null,null,null,null,null,null,null,"Fortalecer la divulgación de información y capacitación a los admitidos en los procesos de caracterización institucional, además de intensificar el ejercicio de admisión de cupos opcionales, para asegurar que la totalidad de los mismos sean asignados.  \nTambién se realizara mesa trabajo con la Dirección de Planeación Institucional a fin de validar los datos históricos y proyecciones que permitan establecer acciones a nivel institucional, que permitan dar cumplimento a la meta establecida del número de matriculados efectivos por periodo académico.\n"]
[]
[]
[]
[]
[]
[null,null,null,null,null,null,null,null,null,"RESPONSABLE "]
[null,null,null,null,null,null,null,null,null,{"$f":"E14","v":"Jefe de Oficina Admisiones y Registro"}]
[]
[]
[null,null,"PERIODO DE EVALUACIÓN"]
[null,null,"MES",{"$f":"IF(J23=\"MENSUAL\",\"ENERO\",IF(J23=\"TRIMESTRAL\",\"MARZO\",IF(J23=\"SEMESTRAL\",\"JUNIO\",IF(J23=\"ANUAL\",YEAR(TODAY()),\"\"))))","v":"JUNIO"},{"$f":"IF(J23=\"MENSUAL\",\"FEBRERO\",IF(J23=\"TRIMESTRAL\",\"JUNIO\",IF(J23=\"SEMESTRAL\",\"DICIEMBRE\",\"\")))","v":"DICIEMBRE"},{"$f":"IF(J23=\"MENSUAL\",\"MARZO\",IF(J23=\"TRIMESTRAL\",\"SEPTIEMBRE\",\"\"))","v":""},{"$f":"IF(J23=\"MENSUAL\",\"ABRIL\",IF(J23=\"TRIMESTRAL\",\"DICIEMBRE\",\"\"))","v":""},{"$f":"IF(J23=\"MENSUAL\",\"MAYO\",\"\")","v":""},{"$f":"IF(J23=\"MENSUAL\",\"JUNIO\",\"\")","v":""},{"$f":"IF(J23=\"MENSUAL\",\"JULIO\",\"\")","v":""},{"$f":"IF(J23=\"MENSUAL\",\"AGOSTO\",\"\")","v":""},{"$f":"IF(J23=\"MENSUAL\",\"SEPTIEMBRE\",\"\")","v":""},{"$f":"IF(J23=\"MENSUAL\",\"OCTUBRE\",\"\")","v":""},{"$f":"IF(J23=\"MENSUAL\",\"NOVIEMBRE\",\"\")","v":""},{"$f":"IF(J23=\"MENSUAL\",\"DICIEMBRE\",\"\")","v":""}]
[null,null,{"$f":"G18","v":"Número de matriculados efectivos * 100"},1520]
[null,null,{"$f":"G19","v":"Total  Número de estudiantes a admitir"},1610]
[null,null,"VALOR ",{"$f":"+D47/D48","v":0.94409937888198758},{"$f":"+E47/E48","v":{"$error":"#DIV/0!"}},{"$f":"IFERROR(IF($E$17=1,F47/F48,IF($E$17=2,F47,\"\")),\"\")","v":""},"","","","","","","","",""]
[null,null,"META PONDERADA",0.98,0.98,{"$f":"IF(AND(N23=\"ANUAL\",J23=\"MENSUAL\"),N17/12+E50,IF(AND(N23=\"ANUAL\",J23=\"TRIMESTRAL\"),N17/4+E50,IF(AND(N23=\"SEMESTRAL\",J23=\"MENSUAL\"),N17/6+E50,IF(AND(N23=\"SEMESTRAL\",J23=\"TRIMESTRAL\"),N17/2,IF(AND(N23=\"TRIMESTRAL\",J23=\"MENSUAL\"),N17/3+E50,IF(AND(N23=\"TRIMESTRAL\",J23=\"TRIMESTRAL\"),N17,IF(AND(N23=\"MENSUAL\",J23=\"MENSUAL\"),N17,\"\")))))))","v":""},{"$f":"IF(AND(N23=\"ANUAL\",J23=\"MENSUAL\"),N17/12+F50,IF(AND(N23=\"ANUAL\",J23=\"TRIMESTRAL\"),N17/4+F50,IF(AND(N23=\"SEMESTRAL\",J23=\"MENSUAL\"),N17/6+F50,IF(AND(N23=\"SEMESTRAL\",J23=\"TRIMESTRAL\"),N17/2+F50,IF(AND(N23=\"TRIMESTRAL\",J23=\"MENSUAL\"),N17/3,IF(AND(N23=\"TRIMESTRAL\",J23=\"TRIMESTRAL\"),N17,IF(AND(N23=\"MENSUAL\",J23=\"MENSUAL\"),N17,\"\")))))))","v":""},{"$f":"IF(AND($N$23=\"ANUAL\",$J$23=\"MENSUAL\"),$N$17/12+G50,IF(AND(N23=\"SEMESTRAL\",J23=\"MENSUAL\"),N17/6+G50,IF(AND(N23=\"TRIMESTRAL\",J23=\"MENSUAL\"),N17/3+G50,IF(AND(N23=\"MENSUAL\",J23=\"MENSUAL\"),N17,\"\"))))","v":""},{"$f":"IF(AND($N$23=\"ANUAL\",$J$23=\"MENSUAL\"),$N$17/12+H50,IF(AND(N23=\"SEMESTRAL\",J23=\"MENSUAL\"),N17/6+H50,IF(AND(N23=\"TRIMESTRAL\",J23=\"MENSUAL\"),N17/3+H50,IF(AND(N23=\"MENSUAL\",J23=\"MENSUAL\"),N17,\"\"))))","v":""},{"$f":"IF(AND($N$23=\"ANUAL\",$J$23=\"MENSUAL\"),$N$17/12+I50,IF(AND(N23=\"SEMESTRAL\",J23=\"MENSUAL\"),N17/6,IF(AND(N23=\"TRIMESTRAL\",J23=\"MENSUAL\"),N17/3,IF(AND(N23=\"MENSUAL\",J23=\"MENSUAL\"),N17,\"\"))))","v":""},{"$f":"IF(AND($N$23=\"ANUAL\",$J$23=\"MENSUAL\"),$N$17/12+J50,IF(AND(N23=\"SEMESTRAL\",J23=\"MENSUAL\"),N17/6+J50,IF(AND(N23=\"TRIMESTRAL\",J23=\"MENSUAL\"),N17/3+J50,IF(AND(N23=\"MENSUAL\",J23=\"MENSUAL\"),N17,\"\"))))","v":""},{"$f":"IF(AND($N$23=\"ANUAL\",$J$23=\"MENSUAL\"),$N$17/12+K50,IF(AND(N23=\"SEMESTRAL\",J23=\"MENSUAL\"),N17/6+K50,IF(AND(N23=\"TRIMESTRAL\",J23=\"MENSUAL\"),N17/3+K50,IF(AND(N23=\"MENSUAL\",J23=\"MENSUAL\"),N17,\"\"))))","v":""},{"$f":"IF(AND($N$23=\"ANUAL\",$J$23=\"MENSUAL\"),$N$17/12+L50,IF(AND(N23=\"SEMESTRAL\",J23=\"MENSUAL\"),N17/6+L50,IF(AND(N23=\"TRIMESTRAL\",J23=\"MENSUAL\"),N17/3,IF(AND(N23=\"MENSUAL\",J23=\"MENSUAL\"),N17,\"\"))))","v":""},{"$f":"IF(AND($N$23=\"ANUAL\",$J$23=\"MENSUAL\"),$N$17/12+M50,IF(AND(N23=\"SEMESTRAL\",J23=\"MENSUAL\"),N17/6+M50,IF(AND(N23=\"TRIMESTRAL\",J23=\"MENSUAL\"),N17/3+M50,IF(AND(N23=\"MENSUAL\",J23=\"MENSUAL\"),N17,\"\"))))","v":""},{"$f":"IF(AND($N$23=\"ANUAL\",$J$23=\"MENSUAL\"),$N$17/12+N50,IF(AND(N23=\"SEMESTRAL\",J23=\"MENSUAL\"),N17/6+N50,IF(AND(N23=\"TRIMESTRAL\",J23=\"MENSUAL\"),N17/3+N50,IF(AND(N23=\"MENSUAL\",J23=\"MENSUAL\"),N17,\"\"))))","v":""}]
[]
[null,null,"NIVEL DE SEGREGACIÓN *"]
[null,null,"UNIDAD SEGREGADA (Ej. Facultad, Programa Académico, Área)",null,null,null,"RESULTADO",null,null,null,"ANÁLISIS DE DATOS SEGREGADO"]
[null,null,"Sede Fusagasugá",null,null,null,0.96,null,null,null,"Del total de los cupos disponibles según registros calificados por programas  en la Sede Fusagasugá siendo 425, se admiten de forma efectiva (son admitidos que cancelan su matricula financiera) 407 en los diferentes programas académicos. "]
[null,null,"Seccional Girardot",null,null,null,0.93,null,null,null,"Del total de los cupos disponibles según registros calificados por programas  en la Seccional Girardot siendo 215, se admiten de forma efectiva (son admitidos que cancelan su matricula financiera) 197 en los diferentes programas académicos. "]
[null,null,"Seccional Ubaté",null,null,null,0.96,null,null,null,"Del total de los cupos disponibles según registros calificados por programas  en la Seccional Ubaté siendo 175, se admiten de forma efectiva (son admitidos que cancelan su matricula financiera) 168 en los diferentes programas académicos. "]
[null,null,"Extensión Facatativá",null,null,null,0.98,null,null,null,"Del total de los cupos disponibles según registros calificados por programas  en la Extensión Facatativá siendo 365, se admiten de forma efectiva (son admitidos que cancelan su matricula financiera) 359 en los diferentes programas académicos. "]
[null,null,"Extensión Chía",null,null,null,0.82,null,null,null,"Del total de los cupos disponibles según registros calificados por programas  en la Extensión Chía siendo 250, se admiten de forma efectiva (son admitidos que cancelan su matricula financiera) 213 en los diferentes programas académicos. "]
[null,null,"Extensión Zipaquirá",null,null,null,1,null,null,null,"Del total de los cupos disponibles según registros calificados por programas  en la Extensión Zipaquirá siendo 20, se admiten de forma efectiva (son admitidos que cancelan su matricula financiera) 20 en los diferentes programas académicos. "]
[null,null,"Extensión Soacha",null,null,null,0.97,null,null,null,"Del total de los cupos disponibles según registros calificados por programas  en la Extensión Soacha siendo160, se admiten de forma efectiva (son admitidos que cancelan su matricula financiera) 156 en los diferentes programas académicos. "]
[]
[null,null,"Diagonal 18 No. 20-29 Fusagasugá – Cundinamarca\nTeléfono (601)  8281483 Línea Gratuita 018000180414\nwww.ucundinamarca.edu.co   E-mail:  info@ucundinamarca.edu.co\nNIT: 890.680.062-2                                                                             "]
[null,null,"Documento controlado por el Sistema de Gestión de la Calidad\nAsegúrese que corresponde a la última versión consultando el Portal Institucional"]
[]
[]
[]
[]
[]
[]
[]
[]
[null,null,null,null,null,null,"Estratégico",null,null,"Eficacia"]
[null,null,null,null,null,null,"Misional",null,null,"Eficiencia"]
[null,null,null,null,null,null,"Apoyo",null,null,"Acreditación"]
[null,null,null,null,null,null,"Seguimiento, Medición, Análisis y Evaluación",null,null,"Positiva"]
[null,null,null,null,null,null,"Direccionamiento Estratégico",null,null,"Negativa"]
[null,null,null,null,null,null,"Planeación Institucional",null,null,"Por Unidad Regional"]
[null,null,null,null,null,null,"Proyectos Especiales y Relaciones Interinstitucionales",null,null,"Por Facultad"]
[null,null,null,null,null,null,"Sistemas Integrados",null,null,"Por Programa Académico"]
[null,null,null,null,null,null,"Autoevaluación y Acreditación",null,null,"Por área"]
[null,null,null,null,null,null,"Comunicaciones",null,null,"Por Laboratorio"]
[null,null,null,null,null,null,"Formación y Aprendizaje",null,null,"Otros"]
[null,null,null,null,null,null,"Ciencia, Tecnología e Innovación",null,null,"No Aplica"]
[null,null,null,null,null,null,"Interacción Social Universitaria"]
[null,null,null,null,null,null,"Bienestar Universitario"]
[null,null,null,null,null,null,"Admisiones y Registro"]
[null,null,null,null,null,null,"Graduados"]
[null,null,null,null,null,null,"Dialogando con el Mundo"]
[null,null,null,null,null,null,"Talento Humano"]
[null,null,null,null,null,null,"Jurídica"]
[null,null,null,null,null,null,"Financiera"]
[null,null,null,null,null,null,"Sistemas y Tecnología"]
[null,null,null,null,null,null,"Bienes y Servicios"]
[null,null,null,null,null,null,"Documental"]
[null,null,null,null,null,null,"Apoyo Académico"]
[null,null,null,null,null,null,"Control Interno"]
[null,null,null,null,null,null,"Control Disciplinario"]
[null,null,null,null,null,null,"Servicio de Atención al Ciudadano"]

{"sheet":"INS-7","index":2,"n_rows":98,"n_cols":15,"rows_kept":98,"cut":false,"hidden":false,"merged":[[61,2,61,14],[62,2,62,14],[58,2,58,5],[58,6,58,9],[58,10,58,14],[59,2,59,5],[59,6,59,9],[59,10,59,14],[56,2,56,5],[56,6,56,9],[56,10,56,14],[57,2,57,5],[57,6,57,9],[57,10,57,14],[54,2,54,5],[54,6,54,9],[54,10,54,14],[55,2,55,5],[55,6,55,9],[55,10,55,14],[53,2,53,5],[53,6,53,9],[53,10,53,14],[26,15,27,15],[27,9,32,14],[33,9,33,14],[34,9,39,14],[40,9,40,14],[41,9,41,14],[44,2,44,14],[51,2,51,14],[52,2,52,5],[52,6,52,9],[52,10,52,14],[22,13,23,14],[23,2,23,3],[23,4,23,6],[25,2,25,14],[26,2,42,8],[26,9,26,14],[42,9,42,14],[22,2,22,3],[22,4,22,6],[22,7,23,8],[22,9,23,10],[22,11,23,12],[19,2,21,3],[19,4,21,6],[19,7,21,8],[19,9,21,10],[19,11,19,14],[16,15,17,15],[17,2,18,3],[17,4,17,5],[17,6,17,10],[17,11,18,12],[17,13,18,14],[18,4,18,5],[18,6,18,10],[16,2,16,3],[16,4,16,6],[16,7,16,8],[16,9,16,10],[16,11,16,12],[16,13,16,14],[15,2,15,14],[8,2,8,14],[9,2,10,14],[11,2,11,3],[11,4,11,7],[11,8,11,9],[11,10,11,14],[12,2,12,3],[12,4,12,14],[13,2,13,3],[13,4,13,14],[14,2,14,14],[1,1,3,2],[4,2,7,3],[4,4,4,11],[4,12,4,14],[5,4,5,11],[5,12,5,14],[6,4,7,11],[6,12,6,14],[7,12,7,14]]}
[]
[null,"      REGRESAR"]
[]
[]
[null,null,null,null,"MACROPROCESO ESTRATÉGICO",null,null,null,null,null,null,null,"CÓDIGO: ESGr027"]
[null,null,null,null,"PROCESO GESTIÓN SISTEMAS INTEGRADOS - CALIDAD",null,null,null,null,null,null,null,"VERSIÓN: 8"]
[null,null,null,null,"MATRIZ DE MEDICIÓN Y SEGUIMIENTO A LOS PROCESOS DE GESTIÓN",null,null,null,null,null,null,null,"VIGENCIA: 2023-07-28"]
[null,null,null,null,null,null,null,null,null,null,null,null,"PÁGINA: 4 de 6"]
[]
[null,null,"FICHA DE INDICADOR"]
[]
[null,null,"MACROPROCESO",null,"Misional",null,null,null,"NOMBRE DEL INDICADOR",null,"Tasa de perdida de condición de estudiante "]
[null,null,"PROCESO GESTIÓN",null,"Admisiones y Registro"]
[null,null,"RESPONSABLE DE MEDICIÓN",null,"Jefe de Oficina Admisiones y Registro"]
[]
[null,null,"1. COMPORTAMIENTO DE INDICADOR"]
[null,null,"CLASIFICACIÓN DE LA MEDICIÓN",null,4,null,null,"TIPO DE INDICADOR",null,"Acreditación",null,"META",null,0.02]
[null,null,"FORMULA",null,"NUMERADOR",null,"Número de estudiantes que pierden condición de estudiante acorde con el reglamento estudiantil * 100",null,null,null,null,"UNIDAD DE MEDIDA",null,"Porcentaje"]
[null,null,null,null,"DENOMINADOR",null,"total de estudiantes"]
[null,null,"TENDENCIA",null,"Negativa",null,null,"NIVEL DE SEGREGACIÓN *",null,"Por Facultad",null,"ESCALA"]
[null,null,null,null,null,null,null,null,null,null,null,"Deficiente","Aceptable","Bueno","Excelente"]
[null,null,null,null,null,null,null,null,null,null,null,">4.0%","3,0% - 3,9%","2% - 2,9%"," 1.9% - 0%"]
[null,null,"ORIGEN DE DATOS NUMERADOR",null,"Listado de la Dirección de Sistemas y Tecnología",null,null,"FRECUENCIA DE LA MEDICIÓN",null,"SEMESTRAL",null,"FRECUENCIA DE RESULTADO",null,"SEMESTRAL"]
[null,null,"ORIGEN DE DATOS DENOMINADOR",null,"Listado de la Dirección de Sistemas y Tecnología"]
[]
[null,null,"RESULTADOS"]
[null,null,null,null,null,null,null,null,null,"ANÁLISIS DE DATOS"]
[null,null,null,null,null,null,null,null,null,"Teniendo en cuenta el ARTICULO 42 DEL ACUERDO No. 010 DEL 12 DE JULIO DE 2006 \"POR EL CUAL SE EXPIDE EL REGLAMENTO ESTUDIANTIL PARA LOS PROGRAMAS DE PREGRADO DE LA UNIVERSIDAD DE CUNDINAMARCA\" y el acuerdo No. 003 su artículo primero Indica que el estudiante de pregrado que pierda por tercera vez un núcleo temático perderá la calidad de estudiante y el acuerdo 004 en su artículo primero indica que esta normatividad empieza a regir en el primero de enero de 2019, esta normatividad esta aplicada para los programas de plan antiguo es decir no resignificados. \nReferente a este aspecto el ACUERDO 027 DE 2021 EN SU ARTICULO N°7, NUMERALES DE 01 AL 10, para los programas académicos con re significación curricular / rutas de aprendizaje numeral 07. donde indica El promedio ponderado acumulado sea inferior a tres dos (3.2) perderá calidad de estudiante, para los estudiantes de primer semestre el promedio acumulado será el mismo del semestre, de igual manera los estudiantes que pierdan tres veces el mismo campo de aprendizaje, perderán la condición de estudiante.\nDe acuerdo con los resultados arrojados en el indicador se puede evidenciar que  los programas que  pertenecen a las Facultades de Ciencias Administrativas, Económicas y Contables y Facultad de Ciencias agropecuarias representan los porcentajes mas altos de perdida de condición con un  37,7%  y 20,2%  respectivamente. "]
[]
[]
[]
[]
[]
[null,null,null,null,null,null,null,null,null,"ACCIÓN FORMULADA"]
[null,null,null,null,null,null,null,null,null,"La Oficina de Admisiones y Registro ha Implementado alertas tempranas para los estudiantes que están por perder las asignaturas por segunda y tercera vez indicando a las coordinaciones de programa académico que permiten que la academia identifique posibles casos y pueda generar estrategias para disminuir el número de estudiantes que pueda perder su condición.                                                                                                                                                                        Para ello los programas académicos  realizarán seguimiento a esta población presenten en cada periodo académico, tanto para los estudiantes de programas resignificados y no resignificados, a fin de identificarlos oportunamente, solicitar acompañamiento preventivo y establecer la aplicabilidad de la Normatividad Vigente.   "]
[]
[]
[]
[]
[]
[null,null,null,null,null,null,null,null,null,"RESPONSABLE "]
[null,null,null,null,null,null,null,null,null,{"$f":"E14","v":"Jefe de Oficina Admisiones y Registro"}]
[]
[]
[null,null,"PERIODO DE EVALUACIÓN"]
[null,null,"MES",{"$f":"IF(J23=\"MENSUAL\",\"ENERO\",IF(J23=\"TRIMESTRAL\",\"MARZO\",IF(J23=\"SEMESTRAL\",\"JUNIO\",IF(J23=\"ANUAL\",YEAR(TODAY()),\"\"))))","v":"JUNIO"},{"$f":"IF(J23=\"MENSUAL\",\"FEBRERO\",IF(J23=\"TRIMESTRAL\",\"JUNIO\",IF(J23=\"SEMESTRAL\",\"DICIEMBRE\",\"\")))","v":"DICIEMBRE"},{"$f":"IF(J23=\"MENSUAL\",\"MARZO\",IF(J23=\"TRIMESTRAL\",\"SEPTIEMBRE\",\"\"))","v":""},{"$f":"IF(J23=\"MENSUAL\",\"ABRIL\",IF(J23=\"TRIMESTRAL\",\"DICIEMBRE\",\"\"))","v":""},{"$f":"IF(J23=\"MENSUAL\",\"MAYO\",\"\")","v":""},{"$f":"IF(J23=\"MENSUAL\",\"JUNIO\",\"\")","v":""},{"$f":"IF(J23=\"MENSUAL\",\"JULIO\",\"\")","v":""},{"$f":"IF(J23=\"MENSUAL\",\"AGOSTO\",\"\")","v":""},{"$f":"IF(J23=\"MENSUAL\",\"SEPTIEMBRE\",\"\")","v":""},{"$f":"IF(J23=\"MENSUAL\",\"OCTUBRE\",\"\")","v":""},{"$f":"IF(J23=\"MENSUAL\",\"NOVIEMBRE\",\"\")","v":""},{"$f":"IF(J23=\"MENSUAL\",\"DICIEMBRE\",\"\")","v":""}]
[null,null,{"$f":"G18","v":"Número de estudiantes que pierden condición de estudiante acorde con el reglamento estudiantil * 100"},337]
[null,null,{"$f":"G19","v":"total de estudiantes"},11982]
[null,null,"VALOR ",{"$f":"+D47/D48","v":2.812552161575697E-2},{"$f":"+E47/E48","v":{"$error":"#DIV/0!"}},{"$f":"IFERROR(IF($E$17=1,F47/F48,IF($E$17=2,F47,\"\")),\"\")","v":""},"","","","","","","","",""]
[null,null,"META PONDERADA",0.02,0.02,{"$f":"IF(AND(N23=\"ANUAL\",J23=\"MENSUAL\"),N17/12+E50,IF(AND(N23=\"ANUAL\",J23=\"TRIMESTRAL\"),N17/4+E50,IF(AND(N23=\"SEMESTRAL\",J23=\"MENSUAL\"),N17/6+E50,IF(AND(N23=\"SEMESTRAL\",J23=\"TRIMESTRAL\"),N17/2,IF(AND(N23=\"TRIMESTRAL\",J23=\"MENSUAL\"),N17/3+E50,IF(AND(N23=\"TRIMESTRAL\",J23=\"TRIMESTRAL\"),N17,IF(AND(N23=\"MENSUAL\",J23=\"MENSUAL\"),N17,\"\")))))))","v":""},{"$f":"IF(AND(N23=\"ANUAL\",J23=\"MENSUAL\"),N17/12+F50,IF(AND(N23=\"ANUAL\",J23=\"TRIMESTRAL\"),N17/4+F50,IF(AND(N23=\"SEMESTRAL\",J23=\"MENSUAL\"),N17/6+F50,IF(AND(N23=\"SEMESTRAL\",J23=\"TRIMESTRAL\"),N17/2+F50,IF(AND(N23=\"TRIMESTRAL\",J23=\"MENSUAL\"),N17/3,IF(AND(N23=\"TRIMESTRAL\",J23=\"TRIMESTRAL\"),N17,IF(AND(N23=\"MENSUAL\",J23=\"MENSUAL\"),N17,\"\")))))))","v":""},{"$f":"IF(AND($N$23=\"ANUAL\",$J$23=\"MENSUAL\"),$N$17/12+G50,IF(AND(N23=\"SEMESTRAL\",J23=\"MENSUAL\"),N17/6+G50,IF(AND(N23=\"TRIMESTRAL\",J23=\"MENSUAL\"),N17/3+G50,IF(AND(N23=\"MENSUAL\",J23=\"MENSUAL\"),N17,\"\"))))","v":""},{"$f":"IF(AND($N$23=\"ANUAL\",$J$23=\"MENSUAL\"),$N$17/12+H50,IF(AND(N23=\"SEMESTRAL\",J23=\"MENSUAL\"),N17/6+H50,IF(AND(N23=\"TRIMESTRAL\",J23=\"MENSUAL\"),N17/3+H50,IF(AND(N23=\"MENSUAL\",J23=\"MENSUAL\"),N17,\"\"))))","v":""},{"$f":"IF(AND($N$23=\"ANUAL\",$J$23=\"MENSUAL\"),$N$17/12+I50,IF(AND(N23=\"SEMESTRAL\",J23=\"MENSUAL\"),N17/6,IF(AND(N23=\"TRIMESTRAL\",J23=\"MENSUAL\"),N17/3,IF(AND(N23=\"MENSUAL\",J23=\"MENSUAL\"),N17,\"\"))))","v":""},{"$f":"IF(AND($N$23=\"ANUAL\",$J$23=\"MENSUAL\"),$N$17/12+J50,IF(AND(N23=\"SEMESTRAL\",J23=\"MENSUAL\"),N17/6+J50,IF(AND(N23=\"TRIMESTRAL\",J23=\"MENSUAL\"),N17/3+J50,IF(AND(N23=\"MENSUAL\",J23=\"MENSUAL\"),N17,\"\"))))","v":""},{"$f":"IF(AND($N$23=\"ANUAL\",$J$23=\"MENSUAL\"),$N$17/12+K50,IF(AND(N23=\"SEMESTRAL\",J23=\"MENSUAL\"),N17/6+K50,IF(AND(N23=\"TRIMESTRAL\",J23=\"MENSUAL\"),N17/3+K50,IF(AND(N23=\"MENSUAL\",J23=\"MENSUAL\"),N17,\"\"))))","v":""},{"$f":"IF(AND($N$23=\"ANUAL\",$J$23=\"MENSUAL\"),$N$17/12+L50,IF(AND(N23=\"SEMESTRAL\",J23=\"MENSUAL\"),N17/6+L50,IF(AND(N23=\"TRIMESTRAL\",J23=\"MENSUAL\"),N17/3,IF(AND(N23=\"MENSUAL\",J23=\"MENSUAL\"),N17,\"\"))))","v":""},{"$f":"IF(AND($N$23=\"ANUAL\",$J$23=\"MENSUAL\"),$N$17/12+M50,IF(AND(N23=\"SEMESTRAL\",J23=\"MENSUAL\"),N17/6+M50,IF(AND(N23=\"TRIMESTRAL\",J23=\"MENSUAL\"),N17/3+M50,IF(AND(N23=\"MENSUAL\",J23=\"MENSUAL\"),N17,\"\"))))","v":""},{"$f":"IF(AND($N$23=\"ANUAL\",$J$23=\"MENSUAL\"),$N$17/12+N50,IF(AND(N23=\"SEMESTRAL\",J23=\"MENSUAL\"),N17/6+N50,IF(AND(N23=\"TRIMESTRAL\",J23=\"MENSUAL\"),N17/3+N50,IF(AND(N23=\"MENSUAL\",J23=\"MENSUAL\"),N17,\"\"))))","v":""}]
[]
[null,null,"NIVEL DE SEGREGACIÓN *"]
[null,null,"UNIDAD SEGREGADA (Ej. Facultad, Programa Académico, Área)",null,null,null,"RESULTADO",null,null,null,"ANÁLISIS DE DATOS SEGREGADO"]
[null,null,"Facultad de Ciencias Administrativas, Económicas y Contables",null,null,null,0.377,null,null,null,"Para el primer semestre de 2024, de 337 estudiantes que perdieron condición a nivel general, 127 estudiantes pertenecen a la Facultad de Ciencias Administrativas, Económicas y Contables, conforme al acuerdo 003 y 004 y Acuerdo 027 en la Universidad de Cundinamarca."]
[null,null,"Facultad de Ciencias Agropecuarias ",null,null,null,0.20200000000000001,null,null,null,"Para el primer semestre de 2024, de 337 estudiantes que perdieron condición a nivel general, 68 estudiantes pertenecen a la Facultad de Ciencias Agropecuarias, conforme al acuerdo 003 y 004 y Acuerdo 027 en la Universidad de Cundinamarca."]
[null,null,"Facultad de Ciencias del Deporte",null,null,null,0.05,null,null,null,"Para el primer semestre de 2024, de 337 estudiantes que perdieron condición a nivel general, 17  estudiantes pertenecen a la Facultad de Ciencias del Deporte,  conforme al acuerdo 003 y 004 y Acuerdo 027 en la Universidad de Cundinamarca."]
[null,null,"Facultad de Educación",null,null,null,6.0000000000000001E-3,null,null,null,"Para el primer semestre de 2024, de 337 estudiantes que perdieron condición a nivel general,  2 estudiantes pertenecen a la Facultad de Educación,  conforme al acuerdo 003 y 004 y Acuerdo 027 en la Universidad de Cundinamarca."]
[null,null,"Facultad de Ingeniería",null,null,null,0.35599999999999998,null,null,null,"Para el primer semestre de 2024, de 337 estudiantes que perdieron condición a nivel general, 120 estudiantes pertenecen a la Facultad de Ingeniería, conforme al acuerdo 003 y 004 y Acuerdo 027 en la Universidad de Cundinamarca."]
[null,null,"Facultad de Ciencias de la salud",null,null,null,8.9999999999999993E-3,null,null,null,"Para el primer semestre de 2024, de 337 estudiantes que perdieron condición a nivel general, 3 estudiantes pertenecen a la Facultad de Ciencias de la Salud,  conforme al acuerdo 003 y 004 y Acuerdo 027 en la Universidad de Cundinamarca."]
[null,null,"Facultad de Ciencias Sociales, Humanidades y Ciencias Políticas",null,null,null,0,null,null,null,"Para el primer semestre de 2024, de 337 estudiantes que perdieron condición a nivel general, 0 estudiante pertenecen a la Facultad de Ciencias Sociales, Humanidades y Ciencias Políticas, conforme al acuerdo 003 y 004 y Acuerdo 027 en la Universidad de Cundinamarca."]
[]
[null,null,"Diagonal 18 No. 20-29 Fusagasugá – Cundinamarca\nTeléfono (601)  8281483 Línea Gratuita 018000180414\nwww.ucundinamarca.edu.co   E-mail:  info@ucundinamarca.edu.co\nNIT: 890.680.062-2                                                                             "]
[null,null,"Documento controlado por el Sistema de Gestión de la Calidad\nAsegúrese que corresponde a la última versión consultando el Portal Institucional"]
[]
[]
[]
[]
[]
[]
[]
[]
[null,null,null,null,null,null,"Estratégico",null,null,"Eficacia"]
[null,null,null,null,null,null,"Misional",null,null,"Eficiencia"]
[null,null,null,null,null,null,"Apoyo",null,null,"Acreditación"]
[null,null,null,null,null,null,"Seguimiento, Medición, Análisis y Evaluación",null,null,"Positiva"]
[null,null,null,null,null,null,"Direccionamiento Estratégico",null,null,"Negativa"]
[null,null,null,null,null,null,"Planeación Institucional",null,null,"Por Unidad Regional"]
[null,null,null,null,null,null,"Proyectos Especiales y Relaciones Interinstitucionales",null,null,"Por Facultad"]
[null,null,null,null,null,null,"Sistemas Integrados",null,null,"Por Programa Académico"]
[null,null,null,null,null,null,"Autoevaluación y Acreditación",null,null,"Por área"]
[null,null,null,null,null,null,"Comunicaciones",null,null,"Por Laboratorio"]
[null,null,null,null,null,null,"Formación y Aprendizaje",null,null,"Otros"]
[null,null,null,null,null,null,"Ciencia, Tecnología e Innovación",null,null,"No Aplica"]
[null,null,null,null,null,null,"Interacción Social Universitaria"]
[null,null,null,null,null,null,"Bienestar Universitario"]
[null,null,null,null,null,null,"Admisiones y Registro"]
[null,null,null,null,null,null,"Graduados"]
[null,null,null,null,null,null,"Dialogando con el Mundo"]
[null,null,null,null,null,null,"Talento Humano"]
[null,null,null,null,null,null,"Jurídica"]
[null,null,null,null,null,null,"Financiera"]
[null,null,null,null,null,null,"Sistemas y Tecnología"]
[null,null,null,null,null,null,"Bienes y Servicios"]
[null,null,null,null,null,null,"Documental"]
[null,null,null,null,null,null,"Apoyo Académico"]
[null,null,null,null,null,null,"Control Interno"]
[null,null,null,null,null,null,"Control Disciplinario"]
[null,null,null,null,null,null,"Servicio de Atención al Ciudadano"]

{"sheet":"MAR-9","index":3,"n_rows":95,"n_cols":15,"rows_kept":95,"cut":false,"hidden":false,"merged":[[58,2,58,14],[59,2,59,14],[56,2,56,5],[56,6,56,9],[56,10,56,14],[54,2,54,5],[54,6,54,9],[54,10,54,14],[55,2,55,5],[55,6,55,9],[55,10,55,14],[53,2,53,5],[53,6,53,9],[53,10,53,14],[26,15,27,15],[27,9,32,14],[33,9,33,14],[34,9,39,14],[40,9,40,14],[41,9,41,14],[44,2,44,14],[51,2,51,14],[52,2,52,5],[52,6,52,9],[52,10,52,14],[22,13,23,14],[23,2,23,3],[23,4,23,6],[25,2,25,14],[26,2,42,8],[26,9,26,14],[42,9,42,14],[22,2,22,3],[22,4,22,6],[22,7,23,8],[22,9,23,10],[22,11,23,12],[19,2,21,3],[19,4,21,6],[19,7,21,8],[19,9,21,10],[19,11,19,14],[16,15,17,15],[17,2,18,3],[17,4,17,5],[17,6,17,10],[17,11,18,12],[17,13,18,14],[18,4,18,5],[18,6,18,10],[16,2,16,3],[16,4,16,6],[16,7,16,8],[16,9,16,10],[16,11,16,12],[16,13,16,14],[15,2,15,14],[8,2,8,14],[9,2,10,14],[11,2,11,3],[11,4,11,7],[11,8,11,9],[11,10,11,14],[12,2,12,3],[12,4,12,14],[13,2,13,3],[13,4,13,14],[14,2,14,14],[1,1,3,2],[4,2,7,3],[4,4,4,11],[4,12,4,14],[5,4,5,11],[5,12,5,14],[6,4,7,11],[6,12,6,14],[7,12,7,14]]}
[]
[null,"      REGRESAR"]
[]
[]
[null,null,null,null,"MACROPROCESO ESTRATÉGICO",null,null,null,null,null,null,null,"CÓDIGO: ESGr027"]
[null,null,null,null,"PROCESO GESTIÓN SISTEMAS INTEGRADOS - CALIDAD",null,null,null,null,null,null,null,"VERSIÓN: 8"]
[null,null,null,null,"MATRIZ DE MEDICIÓN Y SEGUIMIENTO A LOS PROCESOS DE GESTIÓN",null,null,null,null,null,null,null,"VIGENCIA: 2023-07-28"]
[null,null,null,null,null,null,null,null,null,null,null,null,"PÁGINA: 5 de 6"]
[]
[null,null,"FICHA DE INDICADOR"]
[]
[null,null,"MACROPROCESO",null,"Misional",null,null,null,"NOMBRE DEL INDICADOR",null,"Satisfacción de los estudiantes"]
[null,null,"PROCESO GESTIÓN",null,"Admisiones y Registro"]
[null,null,"RESPONSABLE DE MEDICIÓN",null,"Jefe de Oficina Admisiones y Registro"]
[]
[null,null,"1. COMPORTAMIENTO DE INDICADOR"]
[null,null,"CLASIFICACIÓN DE LA MEDICIÓN",null,4,null,null,"TIPO DE INDICADOR",null,"Eficacia",null,"META",null,0.85]
[null,null,"FORMULA",null,"NUMERADOR",null,"(Total encuestas calificación mayor a 4) *100",null,null,null,null,"UNIDAD DE MEDIDA",null,"Porcentaje"]
[null,null,null,null,"DENOMINADOR",null," Total encuestas recibidas"]
[null,null,"TENDENCIA",null,"Positiva",null,null,"NIVEL DE SEGREGACIÓN *",null,"No Aplica",null,"ESCALA"]
[null,null,null,null,null,null,null,null,null,null,null,"Deficiente","Aceptable","Bueno","Excelente"]
[null,null,null,null,null,null,null,null,null,null,null,"0% - 65%","65.1% - 75%","75.1% -  85%","85.1% - 100%"]
[null,null,"ORIGEN DE DATOS NUMERADOR",null,"Resultado en encuestas",null,null,"FRECUENCIA DE LA MEDICIÓN",null,"SEMESTRAL",null,"FRECUENCIA DE RESULTADO",null,"SEMESTRAL"]
[null,null,"ORIGEN DE DATOS DENOMINADOR",null,"Resultado en encuestas"]
[]
[null,null,"RESULTADOS"]
[null,null,null,null,null,null,null,null,null,"ANÁLISIS DE DATOS"]
[null,null,null,null,null,null,null,null,null,"Para la Oficina de Admisiones y Registro es de suma importancia conocer el grado de satisfacción de nuestras Comunidad Universitaria, respecto a los trámites y servicios brindados, los cuales son procesos internos de la Oficina, de tal manera se realiza el análisis por medio de la encuesta de satisfacción U Cundinamarca siglo XXI para el Primer semestre de 2024, donde los resultados obtenidos arrojan un 83% de satisfacción con respecto de los servicios prestados a la Comunidad Universitaria desde este proceso, evidenciando que 293 personas participaron en esta encuesta."]
[]
[]
[]
[]
[]
[null,null,null,null,null,null,null,null,null,"ACCIÓN FORMULADA"]
[null,null,null,null,null,null,null,null,null,"Para el primer semestre de 2024, se implementaron estrategias como el acompañamiento personalizado a los aspirantes a través de herramientas tecnológicas, reforzando de igual manera la estrategia de divulgación y publicación de información de los procedimientos en general por medio del portal web institucional, redes sociales, socializaciones, capsulas informativas y comunicación telefónica brindando una mejor información de los servicios y tramites de esta oficina. Se solicitará a la Dirección de Planeación institucional evaluar el diseño de la encuesta institucional a fin de que esta sea mas interactiva y responda a la medición de la satisfacción de cada parte interesada en especifico."]
[]
[]
[]
[]
[]
[null,null,null,null,null,null,null,null,null,"RESPONSABLE "]
[null,null,null,null,null,null,null,null,null,{"$f":"E14","v":"Jefe de Oficina Admisiones y Registro"}]
[]
[]
[null,null,"PERIODO DE EVALUACIÓN"]
[null,null,"MES",{"$f":"IF(J23=\"MENSUAL\",\"ENERO\",IF(J23=\"TRIMESTRAL\",\"MARZO\",IF(J23=\"SEMESTRAL\",\"JUNIO\",IF(J23=\"ANUAL\",YEAR(TODAY()),\"\"))))","v":"JUNIO"},{"$f":"IF(J23=\"MENSUAL\",\"FEBRERO\",IF(J23=\"TRIMESTRAL\",\"JUNIO\",IF(J23=\"SEMESTRAL\",\"DICIEMBRE\",\"\")))","v":"DICIEMBRE"},{"$f":"IF(J23=\"MENSUAL\",\"MARZO\",IF(J23=\"TRIMESTRAL\",\"SEPTIEMBRE\",\"\"))","v":""},{"$f":"IF(J23=\"MENSUAL\",\"ABRIL\",IF(J23=\"TRIMESTRAL\",\"DICIEMBRE\",\"\"))","v":""},{"$f":"IF(J23=\"MENSUAL\",\"MAYO\",\"\")","v":""},{"$f":"IF(J23=\"MENSUAL\",\"JUNIO\",\"\")","v":""},{"$f":"IF(J23=\"MENSUAL\",\"JULIO\",\"\")","v":""},{"$f":"IF(J23=\"MENSUAL\",\"AGOSTO\",\"\")","v":""},{"$f":"IF(J23=\"MENSUAL\",\"SEPTIEMBRE\",\"\")","v":""},{"$f":"IF(J23=\"MENSUAL\",\"OCTUBRE\",\"\")","v":""},{"$f":"IF(J23=\"MENSUAL\",\"NOVIEMBRE\",\"\")","v":""},{"$f":"IF(J23=\"MENSUAL\",\"DICIEMBRE\",\"\")","v":""}]
[null,null,{"$f":"G18","v":"(Total encuestas calificación mayor a 4) *100"},246]
[null,null,{"$f":"G19","v":" Total encuestas recibidas"},298]
[null,null,"VALOR ",{"$f":"+D47/D48","v":0.82550335570469802},{"$f":"+E47/E48","v":{"$error":"#DIV/0!"}},{"$f":"IFERROR(IF($E$17=1,F47/F48,IF($E$17=2,F47,\"\")),\"\")","v":""},"","","","","","","","",""]
[null,null,"META PONDERADA",0.85,0.85,{"$f":"IF(AND(N23=\"ANUAL\",J23=\"MENSUAL\"),N17/12+E50,IF(AND(N23=\"ANUAL\",J23=\"TRIMESTRAL\"),N17/4+E50,IF(AND(N23=\"SEMESTRAL\",J23=\"MENSUAL\"),N17/6+E50,IF(AND(N23=\"SEMESTRAL\",J23=\"TRIMESTRAL\"),N17/2,IF(AND(N23=\"TRIMESTRAL\",J23=\"MENSUAL\"),N17/3+E50,IF(AND(N23=\"TRIMESTRAL\",J23=\"TRIMESTRAL\"),N17,IF(AND(N23=\"MENSUAL\",J23=\"MENSUAL\"),N17,\"\")))))))","v":""},{"$f":"IF(AND(N23=\"ANUAL\",J23=\"MENSUAL\"),N17/12+F50,IF(AND(N23=\"ANUAL\",J23=\"TRIMESTRAL\"),N17/4+F50,IF(AND(N23=\"SEMESTRAL\",J23=\"MENSUAL\"),N17/6+F50,IF(AND(N23=\"SEMESTRAL\",J23=\"TRIMESTRAL\"),N17/2+F50,IF(AND(N23=\"TRIMESTRAL\",J23=\"MENSUAL\"),N17/3,IF(AND(N23=\"TRIMESTRAL\",J23=\"TRIMESTRAL\"),N17,IF(AND(N23=\"MENSUAL\",J23=\"MENSUAL\"),N17,\"\")))))))","v":""},{"$f":"IF(AND($N$23=\"ANUAL\",$J$23=\"MENSUAL\"),$N$17/12+G50,IF(AND(N23=\"SEMESTRAL\",J23=\"MENSUAL\"),N17/6+G50,IF(AND(N23=\"TRIMESTRAL\",J23=\"MENSUAL\"),N17/3+G50,IF(AND(N23=\"MENSUAL\",J23=\"MENSUAL\"),N17,\"\"))))","v":""},{"$f":"IF(AND($N$23=\"ANUAL\",$J$23=\"MENSUAL\"),$N$17/12+H50,IF(AND(N23=\"SEMESTRAL\",J23=\"MENSUAL\"),N17/6+H50,IF(AND(N23=\"TRIMESTRAL\",J23=\"MENSUAL\"),N17/3+H50,IF(AND(N23=\"MENSUAL\",J23=\"MENSUAL\"),N17,\"\"))))","v":""},{"$f":"IF(AND($N$23=\"ANUAL\",$J$23=\"MENSUAL\"),$N$17/12+I50,IF(AND(N23=\"SEMESTRAL\",J23=\"MENSUAL\"),N17/6,IF(AND(N23=\"TRIMESTRAL\",J23=\"MENSUAL\"),N17/3,IF(AND(N23=\"MENSUAL\",J23=\"MENSUAL\"),N17,\"\"))))","v":""},{"$f":"IF(AND($N$23=\"ANUAL\",$J$23=\"MENSUAL\"),$N$17/12+J50,IF(AND(N23=\"SEMESTRAL\",J23=\"MENSUAL\"),N17/6+J50,IF(AND(N23=\"TRIMESTRAL\",J23=\"MENSUAL\"),N17/3+J50,IF(AND(N23=\"MENSUAL\",J23=\"MENSUAL\"),N17,\"\"))))","v":""},{"$f":"IF(AND($N$23=\"ANUAL\",$J$23=\"MENSUAL\"),$N$17/12+K50,IF(AND(N23=\"SEMESTRAL\",J23=\"MENSUAL\"),N17/6+K50,IF(AND(N23=\"TRIMESTRAL\",J23=\"MENSUAL\"),N17/3+K50,IF(AND(N23=\"MENSUAL\",J23=\"MENSUAL\"),N17,\"\"))))","v":""},{"$f":"IF(AND($N$23=\"ANUAL\",$J$23=\"MENSUAL\"),$N$17/12+L50,IF(AND(N23=\"SEMESTRAL\",J23=\"MENSUAL\"),N17/6+L50,IF(AND(N23=\"TRIMESTRAL\",J23=\"MENSUAL\"),N17/3,IF(AND(N23=\"MENSUAL\",J23=\"MENSUAL\"),N17,\"\"))))","v":""},{"$f":"IF(AND($N$23=\"ANUAL\",$J$23=\"MENSUAL\"),$N$17/12+M50,IF(AND(N23=\"SEMESTRAL\",J23=\"MENSUAL\"),N17/6+M50,IF(AND(N23=\"TRIMESTRAL\",J23=\"MENSUAL\"),N17/3+M50,IF(AND(N23=\"MENSUAL\",J23=\"MENSUAL\"),N17,\"\"))))","v":""},{"$f":"IF(AND($N$23=\"ANUAL\",$J$23=\"MENSUAL\"),$N$17/12+N50,IF(AND(N23=\"SEMESTRAL\",J23=\"MENSUAL\"),N17/6+N50,IF(AND(N23=\"TRIMESTRAL\",J23=\"MENSUAL\"),N17/3+N50,IF(AND(N23=\"MENSUAL\",J23=\"MENSUAL\"),N17,\"\"))))","v":""}]
[]
[null,null,"NIVEL DE SEGREGACIÓN *"]
[null,null,"UNIDAD SEGREGADA (Ej. Facultad, Programa Académico, Área)",null,null,null,"RESULTADO",null,null,null,"ANÁLISIS DE DATOS SEGREGADO"]
[]
[]
[]
[]
[]
[null,null,"Diagonal 18 No. 20-29 Fusagasugá – Cundinamarca\nTeléfono (601)  8281483 Línea Gratuita 018000180414\nwww.ucundinamarca.edu.co   E-mail:  info@ucundinamarca.edu.co\nNIT: 890.680.062-2                                                                             "]
[null,null,"Documento controlado por el Sistema de Gestión de la Calidad\nAsegúrese que corresponde a la última versión consultando el Portal Institucional"]
[]
[]
[]
[]
[null,null,null,null,null,null,null,null,null,"Eficacia"]
[null,null,null,null,null,null,null,null,null,"Eficiencia"]
[null,null,null,null,null,null,null,null,null,"Acreditación "]
[null,null,null,null,null,null,null,null,null,"Control "]
[null,null,null,null,null,null,"Estratégico",null,null,"Eficacia"]
[null,null,null,null,null,null,"Misional",null,null,"Eficiencia"]
[null,null,null,null,null,null,"Apoyo",null,null,"Acreditación"]
[null,null,null,null,null,null,"Seguimiento, Medición, Análisis y Evaluación",null,null,"Positiva"]
[null,null,null,null,null,null,"Direccionamiento Estratégico",null,null,"Negativa"]
[null,null,null,null,null,null,"Planeación Institucional",null,null,"Por Unidad Regional"]
[null,null,null,null,null,null,"Proyectos Especiales y Relaciones Interinstitucionales",null,null,"Por Facultad"]
[null,null,null,null,null,null,"Sistemas Integrados",null,null,"Por Programa Académico"]
[null,null,null,null,null,null,"Autoevaluación y Acreditación",null,null,"Por área"]
[null,null,null,null,null,null,"Comunicaciones",null,null,"Por Laboratorio"]
[null,null,null,null,null,null,"Formación y Aprendizaje",null,null,"Otros"]
[null,null,null,null,null,null,"Ciencia, Tecnología e Innovación",null,null,"No Aplica"]
[null,null,null,null,null,null,"Interacción Social Universitaria"]
[null,null,null,null,null,null,"Bienestar Universitario"]
[null,null,null,null,null,null,"Admisiones y Registro"]
[null,null,null,null,null,null,"Graduados"]
[null,null,null,null,null,null,"Dialogando con el Mundo"]
[null,null,null,null,null,null,"Talento Humano"]
[null,null,null,null,null,null,"Jurídica"]
[null,null,null,null,null,null,"Financiera"]
[null,null,null,null,null,null,"Sistemas y Tecnología"]
[null,null,null,null,null,null,"Bienes y Servicios"]
[null,null,null,null,null,null,"Documental"]
[null,null,null,null,null,null,"Apoyo Académico"]
[null,null,null,null,null,null,"Control Interno"]
[null,null,null,null,null,null,"Control Disciplinario"]
[null,null,null,null,null,null,"Servicio de Atención al Ciudadano"]

{"sheet":"ACTUALIZACIONES","index":4,"n_rows":29,"n_cols":5,"rows_kept":29,"cut":false,"hidden":false,"merged":[[1,2,1,3],[1,1,4,1],[25,1,25,4],[28,1,28,4],[6,1,6,4],[3,2,4,3],[2,2,2,3]]}
[]
[null,null,"MACROPROCESO ESTRATÉGICO",null,"CÓDIGO: ESGr027"]
[null,null,"PROCESO GESTIÓN SISTEMAS INTEGRADOS - CALIDAD",null,"VERSIÓN: 8"]
[null,null,"MATRIZ DE MEDICIÓN Y SEGUIMIENTO A LOS PROCESOS DE GESTIÓN",null,"VIGENCIA: 2023-07-28"]
[null,null,null,null,"PÁGINA: 6 de 6"]
[]
[null,"CONTROL DE ACTUALIZACIONES"]
[null,"FECHA","DESCRIPCIÓN DE LA ACTUALIZACIÓN","RESPONSABLE","CARGO"]
[null,"2022-08-19"," Eliminación del inidcador MAR02 al evidenciar que no agrega valor a procedimiento de inscripcion, selección y admision de estudiantes ","OFICINA DE ADMISIONES Y REGISTRO ","JEFE OFICINA DE ADMISIONES "]
[null,"2022-08-19","Actualizacion a la formula y metodo de medicion del indicador MAR04 ya que no se tenia en cuenta la informacion relacionada con los cupos dispuestos según registros calificados de los programas académicos ","OFICINA DE ADMISIONES Y REGISTRO ","JEFE OFICINA DE ADMISIONES "]
[null,"2022-08-19","Actualizacion a la formula y metodo de medicion del indicador MAR05 ya que no se tenia en cuenta la informacion relacionada con los cupos dispuestos según registros calificados de los programas académicos ","OFICINA DE ADMISIONES Y REGISTRO ","JEFE OFICINA DE ADMISIONES "]
[null,"2023-04-13","Actualización a la formula, meta y escala en el indicador MAR4-MAR5, esto con el fin de generar un ambiente retador para el proceso en 2023, ya que para 2022 se mantuvo la constante en la meta semestral por encima del 95 %","OFICINA DE ADMISIONES Y REGISTRO ","JEFE OFICINA DE ADMISIONES "]
[null,"2023-04-13","Eliminación del indicador MAR8, donde queda establecido como compromiso que la información relacionada con el número de admitidos en condiciones priorizadas se deberá migrar a un tablero de control, cargado a la página web institucional, donde se evidencie la información histórica por periodos. ","OFICINA DE ADMISIONES Y REGISTRO ","JEFE OFICINA DE ADMISIONES "]
[null,"2024-02-14","MAR4 -5 Matriculados efectivos:\nUna vez analizada la tendencia y evaluada la meta y fórmulas de los dos indicadores, se evalúa la pertinencia de condensar los mismos debido a que la medición de inscritos sobre admitidos no agrega valor a la medición de la gestión administrativa, por otra parte el numero de cupos que se admiten bajo la modalidad opcionales, difiere del número total de admitidos y cupos por programa; Esta pasa de 95% a 98%, ajustando la métrica de resultado en la meta ponderada y el seguimiento semestral. \n \nMAR7 Tasa de perdida de condición de estudiante:\nUna vez analizada la tendencia y evaluada la meta del indicador, además del alcance dentro de las actividades de este, se evidencia la necesidad de solicitar que este sea de carácter institucional, ya que interactúan el comité de gestión de éxito académico y la Dirección de Bienestar Universitarios, así como la Academia. La meta no se ajusta, seguimiento de frecuencia de resultado y medición semestral. \n \nMAR9 Percepción de satisfacción de los estudiantes:\n \nTeniendo en cuenta la tendencia y resultados en la medición, se solicita elevar la petición a la dirección de talento humano, para actualización de las encuestas de satisfacción y propiamente la del proceso, ya que el enfoque de esta dependencia es misional y se requiere una mirada general de la satisfacción de la comunidad universitaria.\nSe incluye dentro de la medición y formula alcance a graduados.\n ","OFICINA DE ADMISIONES Y REGISTRO ","JEFE OFICINA DE ADMISIONES "]
[]
[]
[]
[]
[]
[]
[]
[]
[]
[]
[]
[null,"Diagonal 18 No. 20-29 Fusagasugá – Cundinamarca\nTeléfono (601)  8281483 Línea Gratuita 018000180414\nwww.ucundinamarca.edu.co   E-mail:  info@ucundinamarca.edu.co\nNIT: 890.680.062-2                                                                             "]
[]
[]
[null,"Documento controlado por el Sistema de Gestión de la Calidad\nAsegúrese que corresponde a la última versión consultando el Portal Institucional"]

{"sheet":"ITEM","index":5,"n_rows":4,"n_cols":3,"rows_kept":4,"cut":false,"hidden":true,"merged":[]}
["MENSUAL",null,"NÚMERO"]
["TRIMESTRAL",null,"PORCENTAJE"]
["SEMESTRAL"]
["ANUAL"]